[Event "European Amateur-ch U2000 2019"]
[Site "Rhodes"]
[Date "2019.04.10"]
[Round "5.6"]
[White "Krzysztynska, Anna"]
[Black "Zielinski, Olgierd"]
[Result "0-1"]
[ECO "B22"]
[WhiteElo "1844"]
[BlackElo "1850"]
[Annotator "NA"]
[PlyCount "118"]
[EventDate "2019.04.06"]
[EventType "swiss"]
[EventCountry "GRE"]
[SourceTitle "playchess.com"]
[Source "ChessBase"]
[SourceQuality "1"]
[TimeControl "40/5400+30:1800+30"]

1. e4 {[%emt 0:00:00]} c5 {[%emt 0:00:00]} 2. c3 {[%emt 0:00:00]} d5 {[%emt 0:00:00]} 3. exd5 {[%emt 0:00:06]} Qxd5 {[%emt 0:00:07]} 4. d4 {[%emt 0:00:12]} Nc6 {[%emt 0:00:13]} 5. Nf3 {[%emt 0:00:14]} Bf5 {[%emt 0:00:10]} 6. Be3 {[%emt 0:05:23]} cxd4 {[%emt 0:00:08]} 7. cxd4 {[%emt 0:00:34]} Bxb1 {[%emt 0:00:38]} 8. Qxb1 {[%emt 0:08:08]} e5 {[%emt 0:00:06]} 9. a3 {[%emt 0:31:37]} exd4 {[%emt 0:01:49]} 10. Bd2 {[%emt 0:00:29]} Nf6 {[%emt 0:10:13]} 11. Be2 {[%emt 0:02:32]} Be7 {[%emt 0:00:17]} 12. O-O {[%emt 0:00:56]} O-O {[%emt 0:00:06]} 13. Qd3 {[%emt 0:01:50]} Rad8 {[%emt 0:02:04]} 14. Rfe1 $15 {[%emt 0:02:50]} Ne4 {[%emt 0:20:32]} 15. Bf4 {[%emt 0:08:01]} Nc5 {[%emt 0:02:20]} 16. Qd1 {[%emt 0:06:00]} d3 {[%emt 0:00:56]} 17. Bf1 {[%emt 0:00:07]} Bf6 {[%emt 0:04:09]} 18. Rb1 {[%emt 0:02:06]} Rfe8 {[%emt 0:25:02]} 19. Rxe8+ {[%emt 0:04:15]} Rxe8 {[%emt 0:00:01]} 20. Be3 {[%emt 0:03:34]} Rd8 {[%emt 0:06:24]} 21. Bxc5 {[%emt 0:04:49]} Qxc5 {[%emt 0:00:05]} 22. Bxd3 {[%emt 0:01:48]} Bxb2 {[%emt 0:06:08]} 23. Rxb2 {[%emt 0:07:37]} Rxd3 {[%emt 0:00:02]} 24. Qxd3 {[%emt 0:01:38]} Qc1+ {[%emt 0:00:02]} 25. Ne1 {[%emt 0:00:48]} Qxb2 {[%emt 0:00:17]} 26. g3 {[%emt 0:00:45]} g6 {[%emt 0:00:58]} 27. Nf3 {[%emt 0:01:36]} Kg7 {[%emt 0:00:12]} 28. Kg2 {[%emt 0:01:10]} a5 {[%emt 0:00:37]} 29. a4 {[%emt 0:02:50]} Qb4 {[%emt 0:01:42]} 30. Qd1 {[%emt 0:00:50]} Qe4 {[%emt 0:00:19]} 31. Qa1+ {[%emt 0:00:51]} Kg8 {[%emt 0:00:48]} 32. Qa3 {[%emt 0:00:48]} Ne5 {[%emt 0:03:06]} 33. Qe3 {[%emt 0:00:29]} Qxe3 {[%emt 0:00:03]} 34. fxe3 {[%emt 0:00:09]} Nc4 {[%emt 0:00:05]} 35. Nd4 {[%emt 0:01:04]} Nxe3+ {[%emt 0:00:44]} 36. Kf3 {[%emt 0:00:02]} Nd5 {[%emt 0:00:44]} 37. Nb3 {[%emt 0:00:47]} b6 {[%emt 0:00:07]} 38. Nd2 {[%emt 0:00:37]} Nc3 {[%emt 0:00:10]} 39. Nc4 {[%emt 0:00:12]} Nxa4 {[%emt 0:00:09]} 40. Ke3 {[%emt 0:00:00]} Kg7 {[%emt 0:00:00]} 41. Kd4 {[%emt 0:01:26]} Kf6 {[%emt 0:01:09]} 42. Kd5 {[%emt 0:00:42]} Kg5 {[%emt 0:03:50]} 43. Kc6 {[%emt 0:00:34]} Kg4 {[%emt 0:00:25]} 44. Kb5 {[%emt 0:02:50]} Nc3+ {[%emt 0:00:08]} 45. Kxb6 {[%emt 0:00:21]} a4 {[%emt 0:00:07]} 46. Kc5 {[%emt 0:00:34]} Kh3 {[%emt 0:00:26]} 47. Kb4 {[%emt 0:00:59]} Nd5+ {[%emt 0:01:48]} 48. Kxa4 {[%emt 0:00:15]} Kxh2 {[%emt 0:00:06]} 49. g4 {[%emt 0:01:43]} Kg3 {[%emt 0:01:18]} 50. Kb3 {[%emt 0:00:18]} f6 {[%emt 0:00:25]} 51. g5 {[%emt 0:00:21]} fxg5 {[%emt 0:00:34]} 52. Ne5 {[%emt 0:01:08]} Nf4 {[%emt 0:01:18]} 53. Kc2 {[%emt 0:00:25]} h5 {[%emt 0:00:09]} 54. Kd1 {[%emt 0:01:30]} h4 {[%emt 0:00:18]} 55. Ke1 {[%emt 0:00:21]} Kg2 {[%emt 0:00:12]} 56. Ng4 {[%emt 0:00:37]} h3 {[%emt 0:00:20]} 57. Ne3+ {[%emt 0:00:17]} Kg1 {[%emt 0:00:11]} 58. Nd1 {[%emt 0:01:18]} h2 {[%emt 0:00:18]} 59. Nf2 {[%emt 0:00:14]} Nd3+ {[%emt 0:00:35]} 0-1

[Event "European Amateur-ch U2000 2019"]
[Site "Rhodes"]
[Date "2019.04.10"]
[Round "5.7"]
[White "Petukhov, Igor"]
[Black "Boesch, Heinz"]
[Result "1-0"]
[ECO "B31"]
[WhiteElo "1819"]
[BlackElo "1929"]
[Annotator "NA"]
[PlyCount "91"]
[EventDate "2019.04.06"]
[EventType "swiss"]
[EventCountry "GRE"]
[SourceTitle "playchess.com"]
[Source "ChessBase"]
[SourceQuality "1"]
[TimeControl "40/5400+30:1800+30"]

1. e4 {[%emt 0:00:00]} c5 {[%emt 0:00:00]} 2. Nf3 {[%emt 0:00:00]} Nc6 {[%emt 0:00:00]} 3. Bb5 {[%emt 0:00:01]} g6 {[%emt 0:00:00]} 4. Bxc6 {[%emt 0:01:07]} dxc6 {[%emt 0:00:21]} 5. d3 {[%emt 0:00:46]} Bg7 {[%emt 0:00:12]} 6. h3 {[%emt 0:00:25]} e5 {[%emt 0:01:56]} 7. Nc3 {[%emt 0:01:38]} Ne7 {[%emt 0:00:54]} 8. Be3 {[%emt 0:01:07]} b6 {[%emt 0:01:53]} 9. Qd2 {[%emt 0:02:23] B31: Sicilian: 2...Nc6 3 Bb5 g6} Qd6 {[%emt 0:02:56]} (9... h6 10. a3 a5 11. Nh2 Be6 12. O-O g5 13. Ne2 O-O 14. Ng3 a4 15. Nh5 f6 16. Rfd1 Qe8 {1-0 (41) Ivanchuk,V (2766)-Radjabov,T (2793) Beijing 2012}) 10. Bh6 {[%emt 0:05:42]} Bxh6 {[%emt 0:05:49]} 11. Qxh6 {[%emt 0:03:00]} Be6 $146 {[%emt 0:00:41]} (11... f6 $14) ({Predecessor:} 11... Qf6 12. Nd2 Be6 13. Qe3 g5 14. g3 h5 15. O-O-O O-O-O 16. Rdf1 Ng6 {0-1 (69) Muniz,R (2276)-Sosa Macho,J (2157) Montevideo 2013}) 12. Qg7 {[%emt 0:04:41]} O-O-O {[%emt 0:03:13]} 13. Qxe5 {[%emt 0:01:01]} Qxe5 {[%emt 0:03:53]} 14. Nxe5 {[%emt 0:00:05]} f6 {[%emt 0:01:57]} 15. Nf3 {[%emt 0:04:30]} Rhe8 {[%emt 0:02:32]} 16. O-O-O {[%emt 0:03:55]} Kc7 {[%emt 0:02:14]} 17. Rhe1 {[%emt 0:06:50]} b5 {[%emt 0:07:36]} 18. a4 {[%emt 0:06:03]} b4 {[%emt 0:06:39]} 19. Ne2 {[%emt 0:00:27]} b3 {[%emt 0:01:09]} 20. c4 {[%emt 0:02:43]} Rb8 {[%emt 0:03:17]} (20... g5 $16 {is a better defense.}) 21. g4 {[%emt 0:09:22]} a5 {[%emt 0:01:48]} 22. Nc3 $16 {[%emt 0:02:08]} Nc8 {[%emt 0:02:04]} 23. g5 {[%emt 0:03:42]} Bxh3 {[%emt 0:05:59]} 24. gxf6 {[%emt 0:00:34]} Bg4 {[%emt 0:01:16]} 25. Re3 {[%emt 0:00:27]} Bxf3 {[%emt 0:04:19]} 26. Rxf3 {[%emt 0:01:18]} Rf8 {[%emt 0:00:18]} 27. e5 {[%emt 0:01:03]} Ne7 {[%emt 0:02:40]} 28. Rh3 {[%emt 0:01:00]} Nf5 {[%emt 0:02:18]} 29. Rxh7+ {[%emt 0:02:14]} Kb6 {[%emt 0:04:06]} 30. Ne4 {[%emt 0:04:18]} Rbe8 {[%emt 0:01:58]} 31. f4 {[%emt 0:00:56]} Nd4 {[%emt 0:02:51]} 32. Kd2 {[%emt 0:05:04]} Ne6 {[%emt 0:01:45]} 33. Ke3 {[%emt 0:03:40]} g5 {[%emt 0:06:23]} 34. Nxg5 {[%emt 0:07:28]} Nxg5 {[%emt 0:00:26]} 35. fxg5 {[%emt 0:00:05]} Rxe5+ {[%emt 0:00:08]} 36. Kf4 {[%emt 0:01:04]} Re2 {[%emt 0:00:08]} 37. Kg3 {[%emt 0:07:46]} Rxb2 {[%emt 0:02:30]} 38. Rh2 {[%emt 0:00:32]} Rxh2 {[%emt 0:04:22]} 39. Kxh2 {[%emt 0:00:02]} Kc7 {[%emt 0:00:10]} 40. Rb1 {[%emt 0:00:00]} Kd6 {[%emt 0:00:00]} 41. Rxb3 {[%emt 0:02:29]} Ke5 {[%emt 0:00:50]} 42. Rb7 {[%emt 0:00:56]} Kf5 {[%emt 0:02:37]} 43. Rg7 {[%emt 0:00:08]} Rh8+ {[%emt 0:00:12]} 44. Kg3 {[%emt 0:01:13]} Rd8 {[%emt 0:01:03]} 45. f7 {[%emt 0:03:15]} Rf8 {[%emt 0:00:29]} 46. g6 {[%emt 0:00:18]} 1-0

[Event "European Amateur-ch U2000 2019"]
[Site "Rhodes"]
[Date "2019.04.10"]
[Round "5.8"]
[White "Mohnblatt, Nicolas"]
[Black "Mohnblatt, Daniel"]
[Result "1/2-1/2"]
[ECO "C01"]
[WhiteElo "1685"]
[BlackElo "1708"]
[Annotator "NA"]
[PlyCount "38"]
[EventDate "2019.04.06"]
[EventType "swiss"]
[EventCountry "GRE"]
[SourceTitle "playchess.com"]
[Source "ChessBase"]
[SourceQuality "1"]
[TimeControl "40/5400+30:1800+30"]

1. c4 {[%emt 0:00:00]} e6 {[%emt 0:00:00]} 2. e4 {[%emt 0:00:13]} d5 {[%emt 0:01:03]} 3. exd5 {[%emt 0:01:52]} exd5 {[%emt 0:00:07]} 4. d4 {[%emt 0:00:02]} Nf6 {[%emt 0:00:49]} 5. Nc3 {[%emt 0:00:20]} c6 {[%emt 0:00:22]} 6. Bg5 {[%emt 0:00:41]} Be7 {[%emt 0:00:10]} 7. Bd3 {[%emt 0:00:33]} Nbd7 {[%emt 0:01:24]} 8. Nge2 {[%emt 0:00:14]} O-O {[%emt 0:01:33]} 9. O-O {[%emt 0:04:59]} dxc4 {[%emt 0:01:07]} 10. Bxc4 {[%emt 0:00:08]} Nb6 {[%emt 0:00:07]} 11. Bd3 {[%emt 0:00:24]} Nbd5 {[%emt 0:00:21]} 12. a3 {[%emt 0:00:54]} Bg4 {[%emt 0:00:35]} 13. Qc2 {[%emt 0:03:51]} Bh5 {[%emt 0:01:39]} 14. Bxf6 {[%emt 0:04:25]} Nxf6 {[%emt 0:00:12]} 15. Nf4 {[%emt 0:00:08]} Bg6 {[%emt 0:00:39]} 16. Bxg6 {[%emt 0:03:30]} hxg6 {[%emt 0:00:03]} 17. Qb3 {[%emt 0:00:09]} Qb6 {[%emt 0:01:46]} 18. Qxb6 {[%emt 0:00:36]} axb6 {[%emt 0:00:04]} 19. d5 {[%emt 0:01:07]} Bd6 1/2-1/2

[Event "European Amateur-ch U2000 2019"]
[Site "Rhodes"]
[Date "2019.04.11"]
[Round "6.1"]
[White "Demirbas, Emre"]
[Black "Ruzic, Pia Marie"]
[Result "1-0"]
[ECO "D20"]
[WhiteElo "1960"]
[BlackElo "1800"]
[Annotator "NA"]
[PlyCount "35"]
[EventDate "2019.04.06"]
[EventType "swiss"]
[EventCountry "GRE"]
[SourceTitle "playchess.com"]
[Source "ChessBase"]
[SourceQuality "1"]
[TimeControl "40/5400+30:1800+30"]

1. e4 {[%emt 0:00:00]} e6 {[%emt 0:00:00]} 2. d4 {[%emt 0:00:34]} d5 {[%emt 0:00:00]} 3. exd5 {[%emt 0:00:20]} exd5 {[%emt 0:00:00]} 4. Nf3 {[%emt 0:00:04]} Bd6 {[%emt 0:00:20]} 5. c4 {[%emt 0:00:20]} dxc4 {[%emt 0:06:07]} 6. Bxc4 {[%emt 0:00:05]} Ne7 {[%emt 0:00:32]} 7. Ng5 {[%emt 0:00:26]} Bb4+ {[%emt 0:12:02]} 8. Nc3 {[%emt 0:12:05]} Nd5 {[%emt 0:02:32]} 9. Qe2+ {[%emt 0:08:23]} Kf8 {[%emt 0:02:03]} 10. O-O {[%emt 0:01:06]} ({Not} 10. Bxd5 Qxd5 11. O-O Qf5 $16) 10... c6 {[%emt 0:05:04]} 11. Nxd5 {[%emt 0:08:09]} cxd5 {[%emt 0:00:07]} 12. Qf3 {[%emt 0:00:30]} f6 {[%emt 0:12:31]} 13. Bxd5 {[%emt 0:01:46]} Bg4 $18 {[%emt 0:02:11]} (13... Nc6 $142 14. Nf7 Nxd4) 14. Qxg4 {[%emt 0:00:36]} Qxd5 {[%emt 0:00:07]} 15. Qc8+ {[%emt 0:00:07]} Ke7 {[%emt 0:00:02]} 16. Qxh8 {[%emt 0:00:10]} fxg5 {[%emt 0:00:43]} 17. Qxg7+ {[%emt 0:00:04]} Qf7 {[%emt 0:00:58]} 18. Bxg5+ {[%emt 0:00:07] Ba3 [%clk 00:52:51] [%emt 00:00:13]} 1-0

[Event "European Amateur-ch U2000 2019"]
[Site "Rhodes"]
[Date "2019.04.11"]
[Round "6.2"]
[White "Jamba, Alexandru"]
[Black "Flis, Pawel"]
[Result "0-1"]
[ECO "A25"]
[WhiteElo "1852"]
[BlackElo "1903"]
[Annotator "NA"]
[PlyCount "69"]
[EventDate "2019.04.06"]
[EventType "swiss"]
[EventCountry "GRE"]
[SourceTitle "playchess.com"]
[Source "ChessBase"]
[SourceQuality "1"]
[TimeControl "40/5400+30:1800+30"]

1. c4 {[%emt 0:00:00]} e5 {[%emt 0:00:00]} 2. Nc3 {[%emt 0:00:00]} Nc6 {[%emt 0:00:00]} 3. g3 {[%emt 0:00:44]} g6 {[%emt 0:00:05]} 4. Bg2 {[%emt 0:00:06]} Bg7 {[%emt 0:00:05]} 5. e3 {[%emt 0:00:05]} Nge7 {[%emt 0:00:53]} 6. Nge2 {[%emt 0:00:07]} d6 {[%emt 0:00:26]} 7. O-O {[%emt 0:00:11]} O-O {[%emt 0:00:12]} 8. b3 {[%emt 0:00:23]} Be6 {[%emt 0:05:31]} 9. d4 {[%emt 0:00:29]} exd4 {[%emt 0:00:11]} 10. exd4 {[%emt 0:02:40]} d5 {[%emt 0:01:36]} 11. Nf4 {[%emt 0:22:47]} Bxd4 {[%emt 0:21:37]} 12. Nxe6 {[%emt 0:16:25]} fxe6 {[%emt 0:01:08]} 13. Qe1 {[%emt 0:03:04]} Qd7 {[%emt 0:11:03]} 14. Bh6 {[%emt 0:05:07]} Bg7 {[%emt 0:11:15]} 15. Bxg7 {[%emt 0:00:43]} Kxg7 {[%emt 0:00:05]} 16. cxd5 {[%emt 0:00:57]} exd5 {[%emt 0:00:19]} 17. Rd1 $14 {[%emt 0:02:05]} d4 {[%emt 0:04:45]} 18. Ne4 {[%emt 0:03:05]} Qf5 {[%emt 0:03:23]} 19. Qd2 {[%emt 0:02:25]} Rad8 {[%emt 0:00:53]} 20. Ng5 {[%emt 0:00:24]} h6 {[%emt 0:00:43]} 21. Nf3 {[%emt 0:02:48]} Kh7 {[%emt 0:02:35]} 22. Rfe1 {[%emt 0:00:08]} Rf7 {[%emt 0:02:11]} 23. Nh4 {[%emt 0:01:35]} Qf6 {[%emt 0:14:18]} 24. Bh3 {[%emt 0:03:53]} Qg5 {[%emt 0:03:09]} 25. f4 {[%emt 0:05:43]} Qa5 {[%emt 0:03:09]} 26. Qf2 {[%emt 0:03:42]} Nf5 {[%emt 0:01:18]} 27. Bxf5 {[%emt 0:03:32]} gxf5 {[%emt 0:00:15]} 28. Qf3 {[%emt 0:02:08]} Rf6 {[%emt 0:02:34]} 29. Qh5 {[%emt 0:00:13]} d3 {[%emt 0:00:38]} 30. Re6 {[%emt 0:04:02]} Qc5+ {[%emt 0:01:23]} 31. Kf1 {[%emt 0:00:05]} Qd5 {[%emt 0:05:02]} 32. Rxf6 {[%emt 0:00:58]} Qh1+ {[%emt 0:00:15]} 33. Kf2 {[%emt 0:00:08]} Qxh2+ {[%emt 0:00:22]} 34. Ke3 {[%emt 0:01:35]} Re8+ {[%emt 0:00:56] Kd4 [%emt 00:00:24] Rd8+ Ke3 [%emt 00:00:18] Re8+} 35. Kxd3 {[%emt 0:00:27]} 0-1

[Event "European Amateur-ch U2000 2019"]
[Site "Rhodes"]
[Date "2019.04.11"]
[Round "6.3"]
[White "Mihalache, Paul-Stelian"]
[Black "Frontzos, Ioannis"]
[Result "1-0"]
[ECO "D37"]
[WhiteElo "1830"]
[BlackElo "1504"]
[Annotator "NA"]
[PlyCount "63"]
[EventDate "2019.04.06"]
[EventType "swiss"]
[EventCountry "GRE"]
[SourceTitle "playchess.com"]
[Source "ChessBase"]
[SourceQuality "1"]
[TimeControl "40/5400+30:1800+30"]

1. d4 {[%emt 0:00:00]} d5 {[%emt 0:00:00]} 2. Nf3 {[%emt 0:00:00]} Nf6 {[%emt 0:00:00]} 3. c4 {[%emt 0:00:00]} e6 {[%emt 0:00:09]} 4. Nc3 {[%emt 0:00:00]} Be7 {[%emt 0:00:17]} 5. Bf4 {[%emt 0:00:15]} O-O {[%emt 0:00:26]} 6. e3 {[%emt 0:00:08]} c6 {[%emt 0:12:16]} 7. h3 {[%emt 0:00:35]} Nbd7 {[%emt 0:00:53]} 8. c5 {[%emt 0:01:06]} b6 {[%emt 0:02:06]} 9. b4 {[%emt 0:00:08]} bxc5 {[%emt 0:05:56]} 10. bxc5 {[%emt 0:00:22]} Qa5 {[%emt 0:02:01]} 11. Qd2 {[%emt 0:01:39]} Ba6 {[%emt 0:04:24]} 12. Bxa6 {[%emt 0:04:27]} Qxa6 {[%emt 0:00:09]} 13. Rb1 {[%emt 0:03:17]} Ne4 {[%emt 0:02:21]} 14. Nxe4 {[%emt 0:05:58]} dxe4 {[%emt 0:00:10]} 15. Ne5 {[%emt 0:20:27]} Nxe5 {[%emt 0:00:29]} 16. Bxe5 {[%emt 0:00:15]} Rfd8 {[%emt 0:10:28]} 17. Qc2 {[%emt 0:10:44]} Rd5 {[%emt 0:20:57]} 18. Qxe4 {[%emt 0:07:03]} Rad8 {[%emt 0:03:55]} 19. Qc2 {[%emt 0:03:02]} Bxc5 {[%emt 0:07:08]} 20. e4 {[%emt 0:13:53]} Rxd4 {[%emt 0:06:14]} 21. Bxd4 {[%emt 0:00:20]} Bxd4 {[%emt 0:00:32]} 22. Qe2 {[%emt 0:02:56]} Qa5+ {[%emt 0:02:55]} 23. Kf1 {[%emt 0:00:05]} c5 {[%emt 0:02:40]} 24. g3 {[%emt 0:01:08]} Bc3 {[%emt 0:03:14]} 25. Kg2 {[%emt 0:01:05]} g6 {[%emt 0:00:48]} 26. Rhd1 {[%emt 0:01:53]} Rxd1 {[%emt 0:01:05]} 27. Rxd1 {[%emt 0:00:32]} Qb6 {[%emt 0:02:15]} 28. Rd7 {[%emt 0:01:35]} Bd4 {[%emt 0:01:13]} 29. Qf3 {[%emt 0:01:13]} f6 {[%emt 0:00:47]} 30. e5 {[%emt 0:03:39]} Bxe5 {[%emt 0:01:04]} 31. Qa8+ {[%emt 0:00:40]} Bb8 {[%emt 0:02:10]} 32. Rb7 {[%emt 0:00:27]} 1-0

[Event "European Amateur-ch U2000 2019"]
[Site "Rhodes"]
[Date "2019.04.11"]
[Round "6.4"]
[White "Zielinski, Olgierd"]
[Black "Kostov, Deyan Samuil"]
[Result "0-1"]
[ECO "B53"]
[WhiteElo "1850"]
[BlackElo "1830"]
[Annotator "NA"]
[PlyCount "90"]
[EventDate "2019.04.06"]
[EventType "swiss"]
[EventCountry "GRE"]
[SourceTitle "playchess.com"]
[Source "ChessBase"]
[SourceQuality "1"]
[TimeControl "40/5400+30:1800+30"]

1. e4 {[%emt 0:00:00]} c5 {[%emt 0:00:00]} 2. Nf3 {[%emt 0:00:00]} d6 {[%emt 0:00:00]} 3. d4 {[%emt 0:00:00]} Nf6 {[%emt 0:00:00]} 4. Nc3 {[%emt 0:00:15]} cxd4 {[%emt 0:00:02]} 5. Qxd4 {[%emt 0:00:10]} Nc6 {[%emt 0:00:54]} 6. Bb5 {[%emt 0:00:08]} Bd7 {[%emt 0:00:45]} 7. Bxc6 {[%emt 0:00:08]} Bxc6 {[%emt 0:03:01]} 8. Bg5 {[%emt 0:00:07]} e5 {[%emt 0:05:09]} 9. Qd3 {[%emt 0:00:58]} Be7 {[%emt 0:12:38]} 10. Bxf6 {[%emt 0:00:07]} Bxf6 {[%emt 0:00:11]} 11. O-O-O {[%emt 0:00:06]} Be7 {[%emt 0:01:45]} 12. Nd5 {[%emt 0:00:11]} Bxd5 $11 {[%emt 0:00:15]} 13. Qxd5 {[%emt 0:00:06]} Qb6 {[%emt 0:02:27]} 14. Rd2 {[%emt 0:00:31]} O-O {[%emt 0:00:29]} 15. h4 {[%emt 0:00:19]} Rac8 {[%emt 0:01:01]} 16. Qb3 {[%emt 0:00:31]} Qa6 {[%emt 0:03:03]} 17. Kb1 {[%emt 0:00:23]} Rc5 {[%emt 0:05:53]} 18. Qd3 {[%emt 0:05:17]} Qc6 {[%emt 0:04:52]} 19. g4 {[%emt 0:04:31]} b5 {[%emt 0:12:27]} 20. Rhd1 {[%emt 0:00:08]} b4 {[%emt 0:02:08]} 21. Qe2 {[%emt 0:00:09]} Rc8 {[%emt 0:01:18]} 22. g5 {[%emt 0:00:56]} Qa4 {[%emt 0:08:04]} 23. b3 {[%emt 0:02:38]} Qa3 {[%emt 0:02:49]} 24. Ne1 {[%emt 0:14:39]} Ra5 {[%emt 0:04:27]} 25. c4 {[%emt 0:00:29]} bxc3 {[%emt 0:00:12]} 26. Rc2 {[%emt 0:00:07]} Rac5 {[%emt 0:05:52]} 27. Nd3 {[%emt 0:02:12]} R5c6 {[%emt 0:00:39]} 28. Nc1 {[%emt 0:00:25]} Qb4 {[%emt 0:04:49]} 29. Rd5 {[%emt 0:01:19]} Rb8 {[%emt 0:04:42]} 30. Nd3 {[%emt 0:01:14]} Qb6 {[%emt 0:00:52]} 31. Qe1 {[%emt 0:05:54]} Rbc8 {[%emt 0:01:05]} 32. Qc1 {[%emt 0:06:12]} a5 {[%emt 0:06:01]} 33. Qa3 {[%emt 0:00:21]} Rc4 {[%emt 0:02:44]} 34. Rxa5 {[%emt 0:21:01]} Rxe4 {[%emt 0:02:34]} 35. Ra8 {[%emt 0:00:01]} Rec4 {[%emt 0:03:11]} 36. Rxc8+ {[%emt 0:00:26]} Rxc8 {[%emt 0:00:05]} 37. Nxe5 {[%emt 0:00:07]} Qd4 {[%emt 0:01:16]} 38. Nc6 {[%emt 0:10:16]} Qd1+ {[%emt 0:00:35]} 39. Rc1 {[%emt 0:00:01]} c2+ {[%emt 0:00:41]} 40. Kb2 {[%emt 0:00:00]} Bf8 {[%emt 0:00:00]} 41. Qa6 {[%emt 0:03:55]} Re8 {[%emt 0:01:33]} 42. Rxc2 {[%emt 0:00:30]} g6 {[%emt 0:00:38]} 43. Nb4 {[%emt 0:28:38]} Qd4+ {[%emt 0:01:05]} 44. Ka3 {[%emt 0:00:02]} d5 {[%emt 0:00:14]} 45. Qb7 {[%emt 0:03:15]} Bxb4+ {[%emt 0:00:04]} 0-1

[Event "European Amateur-ch U2000 2019"]
[Site "Rhodes"]
[Date "2019.04.11"]
[Round "6.5"]
[White "Bozinovic, Boban"]
[Black "Petukhov, Igor"]
[Result "1-0"]
[ECO "C45"]
[WhiteElo "1950"]
[BlackElo "1819"]
[Annotator "NA"]
[PlyCount "68"]
[EventDate "2019.04.06"]
[EventType "swiss"]
[EventCountry "GRE"]
[SourceTitle "playchess.com"]
[Source "ChessBase"]
[SourceQuality "1"]
[TimeControl "40/5400+30:1800+30"]

1. e4 {[%emt 0:00:00]} e5 {[%emt 0:00:00]} 2. Nf3 {[%emt 0:00:00]} Nc6 {[%emt 0:00:00]} 3. d4 {[%emt 0:00:00]} exd4 {[%emt 0:00:10]} 4. Nxd4 {[%emt 0:00:00]} Bc5 {[%emt 0:00:28]} 5. Nxc6 {[%emt 0:00:00]} Qf6 {[%emt 0:00:42]} 6. Qd2 {[%emt 0:00:15]} Qxc6 {[%emt 0:05:40]} 7. Nc3 {[%emt 0:00:09]} Nf6 {[%emt 0:03:40]} 8. Bd3 {[%emt 0:00:06]} O-O {[%emt 0:04:50]} 9. O-O {[%emt 0:15:16]} Bb4 {[%emt 0:11:03]} 10. a3 {[%emt 0:00:10]} Bxc3 $1 {[%emt 0:01:33]} 11. bxc3 {[%emt 0:05:07]} (11. Qxc3 $11 Qxc3 12. bxc3) 11... Nxe4 {[%emt 0:03:49]} 12. Qe3 {[%emt 0:02:34]} d5 {[%emt 0:03:54]} 13. c4 {[%emt 0:07:27]} Nf6 {[%emt 0:07:22]} ({Better is} 13... Bf5 $17 14. cxd5 Qxd5) 14. cxd5 {[%emt 0:03:05]} Nxd5 {[%emt 0:01:35]} 15. Qd4 {[%emt 0:11:39]} Qc3 $11 {[%emt 0:08:28]} ({Black should play} 15... Qf6 $15 16. Qxf6 Nxf6) 16. Qxd5 {[%emt 0:04:18]} Qxa1 {[%emt 0:00:06]} 17. Qe4 {[%emt 0:04:20]} f5 {[%emt 0:03:22]} 18. Qc4+ {[%emt 0:01:33]} Kh8 {[%emt 0:06:43]} 19. c3 {[%emt 0:16:01]} Re8 {[%emt 0:05:36]} 20. Qxc7 {[%emt 0:08:33]} Qa2 {[%emt 0:05:09]} 21. Bc4 {[%emt 0:07:19]} Qc2 {[%emt 0:02:09]} 22. Qf7 {[%emt 0:03:53]} Be6 {[%emt 0:21:49]} 23. Bxe6 {[%emt 0:00:13]} Qxc3 {[%emt 0:00:03]} 24. Be3 {[%emt 0:03:32]} Qe5 {[%emt 0:01:32]} 25. Ba2 {[%emt 0:01:49]} Rf8 {[%emt 0:01:09]} 26. Qd5 {[%emt 0:01:45]} Qe7 {[%emt 0:00:27]} 27. Bc5 {[%emt 0:00:30]} Qf6 {[%emt 0:00:57]} 28. Bxf8 {[%emt 0:00:23]} Rxf8 {[%emt 0:00:02]} 29. Qxb7 {[%emt 0:00:51]} f4 {[%emt 0:00:20]} 30. Qxa7 {[%emt 0:01:20]} f3 {[%emt 0:00:04]} 31. Bd5 {[%emt 0:00:35]} fxg2 {[%emt 0:00:59]} 32. Bxg2 {[%emt 0:00:35]} h5 {[%emt 0:00:15]} 33. Qc5 {[%emt 0:01:19]} g5 {[%emt 0:00:45]} 34. Re1 {[%emt 0:00:54]} Kh7 {[%emt 0:01:35]} 1-0

[Event "European Amateur-ch U2000 2019"]
[Site "Rhodes"]
[Date "2019.04.11"]
[Round "6.6"]
[White "Minko, Olga"]
[Black "Suliborski, Artur"]
[Result "0-1"]
[ECO "B13"]
[WhiteElo "1833"]
[BlackElo "1926"]
[Annotator "NA"]
[PlyCount "62"]
[EventDate "2019.04.06"]
[EventType "swiss"]
[EventCountry "GRE"]
[SourceTitle "playchess.com"]
[Source "ChessBase"]
[SourceQuality "1"]
[TimeControl "40/5400+30:1800+30"]

1. e4 {[%emt 0:00:00]} c6 {[%emt 0:00:00]} 2. d4 {[%emt 0:00:00]} d5 {[%emt 0:00:00]} 3. exd5 {[%emt 0:00:00]} cxd5 {[%emt 0:00:00]} 4. Bd3 {[%emt 0:00:00]} Nc6 {[%emt 0:00:00]} 5. c3 {[%emt 0:00:06]} g6 {[%emt 0:00:23]} 6. h3 {[%emt 0:00:41]} Nh6 {[%emt 0:00:21]} 7. Bf4 {[%emt 0:07:12]} Nf5 {[%emt 0:07:03]} 8. Nf3 {[%emt 0:02:09]} Bg7 {[%emt 0:00:09]} 9. Qe2 {[%emt 0:01:34]} O-O {[%emt 0:00:14]} 10. O-O {[%emt 0:03:51]} Re8 {[%emt 0:00:24]} 11. g4 {[%emt 0:34:16]} Nd6 {[%emt 0:01:04]} (11... e5 $5 12. dxe5 Nh4 $11) 12. Ne5 {[%emt 0:03:47]} (12. Rd1 $11 {keeps the balance.}) 12... f6 {[%emt 0:03:12]} 13. Nxc6 {[%emt 0:15:43]} bxc6 {[%emt 0:00:01]} 14. f3 {[%emt 0:04:19]} e5 {[%emt 0:02:28]} 15. dxe5 {[%emt 0:00:17]} fxe5 {[%emt 0:00:04]} 16. Bg3 {[%emt 0:00:52]} Rb8 {[%emt 0:02:06]} 17. Kh1 {[%emt 0:02:58]} Bb7 {[%emt 0:10:10]} 18. Nd2 {[%emt 0:02:44]} Ba8 $11 {[%emt 0:03:08]} 19. Rab1 {[%emt 0:01:02]} Kh8 {[%emt 0:07:14]} 20. Qf2 {[%emt 0:02:12]} Qa5 {[%emt 0:25:42]} 21. a3 {[%emt 0:04:14]} c5 {[%emt 0:04:49]} 22. b4 {[%emt 0:02:38]} cxb4 {[%emt 0:00:44]} 23. axb4 {[%emt 0:00:22]} Qc7 {[%emt 0:00:15]} 24. Rbc1 {[%emt 0:01:13]} e4 {[%emt 0:00:32]} 25. Qh2 {[%emt 0:02:33]} Rbd8 {[%emt 0:00:51]} 26. Be2 {[%emt 0:01:07]} Qb6 {[%emt 0:02:35]} 27. Nb3 {[%emt 0:02:52]} Nb5 {[%emt 0:01:46]} 28. c4 {[%emt 0:02:41]} dxc4 {[%emt 0:00:27]} 29. Nc5 {[%emt 0:00:26]} Rd2 {[%emt 0:01:01]} 30. Nxe4 {[%emt 0:01:45]} Rxe4 {[%emt 0:00:14]} 31. Bf2 {[%emt 0:00:34]} Rexe2 {[%emt 0:00:19]} 0-1